[Event "GER-chT Youth Countries 2018"]
[Site "Wurzburg"]
[Date "2018.10.03"]
[Round "1"]
[White "Reuter, Elisa"]
[Black "Hommer, Jeremy"]
[Result "1/2-1/2"]
[ECO "B13"]
[WhiteElo "1786"]
[BlackElo "1983"]
[Annotator "NA"]
[PlyCount "89"]
[EventDate "2018.10.03"]
[EventType "team-tourn"]
[EventCountry "GER"]
[SourceTitle "playchess.com"]
[Source "ChessBase"]
[SourceQuality "1"]
[TimeControl "40/5400+30:1800+30"]

1. e4 {[%emt 0:00:00]} c6 {[%emt 0:00:00]} 2. d4 {[%emt 0:00:00]} d5 {[%emt 0:00:00]} 3. exd5 {[%emt 0:00:00]} cxd5 {[%emt 0:00:00]} 4. c4 {[%emt 0:00:00]} Nf6 {[%emt 0:00:11]} 5. Nc3 {[%emt 0:00:00]} Nc6 {[%emt 0:01:21]} 6. Nf3 {[%emt 0:00:25]} e6 {[%emt 0:12:55]} 7. c5 {[%emt 0:00:36]} Ne4 {[%emt 0:16:01]} 8. Qc2 {[%emt 0:06:17]} Qa5 {[%emt 0:05:27] B14: Caro-Kann: Panov-Botvinnik Attack with 5...e6 and 5...g6} (8... Nxc3 9. Qxc3 a5 10. Bb5 Bd7 11. O-O Be7 12. Bf4 O-O 13. Rfe1 Ne5 14. Bxd7 Nxf3+ 15. Qxf3 Qxd7 16. Rac1 {½-½ (33) Sargissian,G (2675)-Antipov,M (2511) Warsaw 2013}) 9. Bd2 {[%emt 0:03:23]} Nxd2 {[%emt 0:00:40]} 10. Qxd2 {[%emt 0:00:06]} Bd7 {[%emt 0:08:31]} 11. Bb5 {[%emt 0:01:59]} Be7 {[%emt 0:03:14]} 12. O-O {[%emt 0:01:41]} Qc7 $146 {[%emt 0:02:34]} ({Predecessor:} 12... b6 13. a3 bxc5 14. dxc5 Qc7 15. b4 Rb8 16. Rab1 {1-0 (32) Cherkasova,M (2015)-Guseva,M Serpukhov 1999}) 13. Bxc6 {[%emt 0:02:49]} bxc6 {[%emt 0:02:02]} 14. b4 {[%emt 0:00:37]} a5 {[%emt 0:02:46]} 15. a3 {[%emt 0:01:59]} Qa7 {[%emt 0:06:06]} 16. Rab1 {[%emt 0:03:21]} axb4 {[%emt 0:11:36]} 17. axb4 {[%emt 0:00:09]} Rb8 {[%emt 0:00:51]} 18. Ne5 {[%emt 0:06:24]} O-O {[%emt 0:00:53]} 19. Ra1 {[%emt 0:04:44]} Qb7 {[%emt 0:02:35]} 20. Rfb1 {[%emt 0:02:05]} Ra8 {[%emt 0:01:19]} 21. Na4 {[%emt 0:15:54]} Bd8 {[%emt 0:00:18]} 22. Qb2 {[%emt 0:01:15]} Be8 {[%emt 0:03:34]} 23. Nc3 {[%emt 0:02:45]} Rb8 {[%emt 0:00:41]} 24. Ra3 {[%emt 0:03:06]} f6 {[%emt 0:03:58]} 25. Nd3 {[%emt 0:02:21]} Bg6 {[%emt 0:00:07]} 26. Qe2 {[%emt 0:02:31] [#]} e5 $1 {[%emt 0:03:14]} 27. dxe5 {[%emt 0:01:24]} fxe5 {[%emt 0:00:06]} 28. Rb2 $2 {[%emt 0:01:12]} (28. b5 $1 $11 {und Weiss muss sich keine Sorgen machen.}) 28... Bxd3 {[%emt 0:00:28]} (28... Bf6 $19 29. Rab3 Qf7) 29. Qxd3 {[%emt 0:00:09]} e4 {[%emt 0:00:36]} 30. Qd2 {[%emt 0:05:22]} Bh4 {[%emt 0:01:27]} 31. Nd1 {[%emt 0:01:10]} Qf7 {[%emt 0:01:52]} 32. Qe2 {[%emt 0:09:38]} d4 {[%emt 0:01:39]} 33. g3 {[%emt 0:01:12]} Qg6 {[%emt 0:02:22]} 34. Rbb3 {[%emt 0:12:00]} (34. Qc4+ $17 Kh8 35. Re2) 34... Rbe8 {[%emt 0:00:36]} (34... d3 $19 35. Qd2 Bf6) 35. Qc4+ {[%emt 0:01:28]} Kh8 {[%emt 0:02:00]} 36. Qxd4 {[%emt 0:00:33]} Rd8 $1 {[%emt 0:00:44]} 37. Qa1 {[%emt 0:00:21]} Bf6 {[%emt 0:02:06]} 38. Qb1 {[%emt 0:01:13]} Bd4 {[%emt 0:02:26]} 39. Ne3 {[%emt 0:00:45]} Qf7 {[%emt 0:01:16]} 40. Qe1 {[%emt 0:03:25]} Qf3 {[%emt 0:00:55]} 41. Rb1 {[%emt 0:31:09]} Rd7 {[%emt 0:15:41] [#]} 42. Ra2 $1 {[%emt 0:00:00]} Rfd8 {[%emt 0:02:53]} (42... h5 $14) 43. Qe2 {[%emt 0:00:00]} Bc3 $18 {[%emt 0:06:20]} (43... g5 $16) 44. Qxf3 {[%emt 0:00:00]} exf3 {[%emt 0:00:01]} 45. h4 {[%emt 0:00:00]} 1/2-1/2

[Event "GER-chT Youth Countries 2018"]
[Site "Wurzburg"]
[Date "2018.10.03"]
[Round "1"]
[White "Weimert, Miriam"]
[Black "Roessel, Gino"]
[Result "1-0"]
[ECO "C18"]
[WhiteElo "1776"]
[BlackElo "1778"]
[Annotator "NA"]
[PlyCount "73"]
[EventDate "2018.10.03"]
[EventType "team-tourn"]
[EventCountry "GER"]
[SourceTitle "playchess.com"]
[Source "ChessBase"]
[SourceQuality "1"]
[TimeControl "40/5400+30:1800+30"]

1. e4 {[%emt 0:00:00]} e6 {[%emt 0:00:00]} 2. d4 {[%emt 0:00:00]} d5 {[%emt 0:00:00]} 3. Nc3 {[%emt 0:00:23]} Bb4 {[%emt 0:00:17]} 4. e5 {[%emt 0:00:54]} Ne7 {[%emt 0:02:33]} 5. a3 {[%emt 0:06:25]} Bxc3+ {[%emt 0:00:47]} 6. bxc3 {[%emt 0:00:06]} c5 {[%emt 0:02:56]} 7. Qg4 {[%emt 0:10:14]} O-O {[%emt 0:00:53]} 8. Bd2 {[%emt 0:16:25]} f5 {[%emt 0:08:02]} 9. Qd1 {[%emt 0:01:44]} Nbc6 {[%emt 0:09:04]} 10. Nf3 {[%emt 0:00:29]} h6 {[%emt 0:06:27]} 11. h4 {[%emt 0:04:37]} Qc7 {[%emt 0:05:02]} 12. Bd3 {[%emt 0:03:46]} Bd7 {[%emt 0:07:03]} 13. Qc1 {[%emt 0:03:51]} Kh7 {[%emt 0:02:51]} 14. Rh3 {[%emt 0:09:42]} c4 {[%emt 0:03:17]} 15. Be2 {[%emt 0:03:07]} Qa5 {[%emt 0:03:58]} 16. Kf1 {[%emt 0:02:54]} Rf7 {[%emt 0:04:02]} 17. Rg3 {[%emt 0:06:01]} Rg8 {[%emt 0:06:14]} 18. Rb1 {[%emt 0:08:05]} Qc7 {[%emt 0:01:32]} 19. Rh3 {[%emt 0:02:00]} Rgf8 {[%emt 0:03:15]} 20. Rg3 {[%emt 0:09:10]} Rg8 {[%emt 0:04:33]} 21. Qb2 {[%emt 0:02:38]} b6 {[%emt 0:01:25]} 22. Kg1 {[%emt 0:00:41]} Qd8 {[%emt 0:05:48]} 23. Kh2 {[%emt 0:00:46]} Ng6 {[%emt 0:01:15]} 24. Rh1 {[%emt 0:01:57]} f4 {[%emt 0:09:16]} 25. Rg4 {[%emt 0:01:30]} Rf5 {[%emt 0:00:49]} 26. Kg1 {[%emt 0:02:08]} h5 {[%emt 0:01:15]} 27. Rg5 {[%emt 0:00:02]} Rgf8 {[%emt 0:00:28]} 28. Rxf5 {[%emt 0:00:13]} Rxf5 {[%emt 0:00:41]} 29. Ng5+ {[%emt 0:00:04]} Kh6 {[%emt 0:00:29]} 30. Qc1 {[%emt 0:00:24]} Qf8 {[%emt 0:03:38]} 31. g3 {[%emt 0:02:11]} Nge7 {[%emt 0:01:05]} 32. Bxf4 {[%emt 0:00:39]} Kg6 {[%emt 0:00:22]} 33. Qd1 {[%emt 0:00:59]} Qh8 {[%emt 0:00:20]} 34. Be3 {[%emt 0:00:31]} Rxg5 {[%emt 0:03:11]} 35. hxg5 {[%emt 0:00:24]} Kf7 {[%emt 0:00:23]} 36. Bxh5+ {[%emt 0:00:10]} Kf8 {[%emt 0:00:20]} 37. Qf3+ {[%emt 0:00:19]} 1-0

[Event "GER-chT Youth Countries 2018"]
[Site "Wurzburg"]
[Date "2018.10.03"]
[Round "1"]
[White "Kluehs, Gustaf"]
[Black "Flach, Helene"]
[Result "0-1"]
[ECO "D30"]
[WhiteElo "1775"]
[BlackElo "1844"]
[Annotator "NA RC"]
[PlyCount "140"]
[EventDate "2018.10.03"]
[EventType "team-tourn"]
[EventCountry "GER"]
[SourceTitle "playchess.com"]
[Source "ChessBase"]
[SourceQuality "1"]
[TimeControl "40/5400+30:1800+30"]

1. d4 {[%emt 0:00:00]} d5 {[%emt 0:00:00]} 2. c4 {[%emt 0:00:12]} e6 {[%emt 0:00:00]} 3. Nf3 {[%emt 0:00:02]} Nf6 {[%emt 0:00:00]} 4. g3 {[%emt 0:00:04]} Bb4+ {[%emt 0:00:36]} 5. Bd2 {[%emt 0:00:05]} Be7 {[%emt 0:00:05]} 6. Bg2 {[%emt 0:00:04]} O-O {[%emt 0:00:07]} 7. O-O {[%emt 0:00:03]} c6 {[%emt 0:00:09]} 8. Qc2 {[%emt 0:00:12]} b6 {[%emt 0:00:26]} 9. Bc1 {[%emt 0:02:27] E11: Bogo-Indian} (9. Rd1 Nbd7 10. Bf4 Bb7 11. Ne5 Nh5 12. Bd2 Nhf6 13. cxd5 cxd5 14. Nc6 Bxc6 15. Qxc6 a6 16. a4 Rc8 17. Qb7 Nb8 18. Na3 Qc7 19. Qxc7 Rxc7 {½-½ (52) Cheparinov,I (2710)-Kuzubov,Y (2699) Riadh 2017}) 9... Nbd7 {[%emt 0:05:16]} 10. b3 {[%emt 0:00:11]} Ba6 {[%emt 0:04:45]} 11. Bb2 {[%emt 0:00:21]} Rc8 {[%emt 0:01:05]} 12. Nbd2 {[%emt 0:00:49]} c5 {[%emt 0:04:56]} 13. Rfc1 $146 {[%emt 0:02:16]} ({Predecessor:} 13. e3 b5 14. Rfd1 bxc4 15. bxc4 cxd4 16. Nxd4 Nb6 17. Bc3 Nxc4 18. Nxc4 Bxc4 {0-1 (40) Carneiro,C (2209)-Fernandes,A (2402) Luso 2016}) 13... dxc4 {[%emt 0:14:05]} 14. bxc4 {[%emt 0:00:38]} cxd4 {[%emt 0:07:48]} 15. Bxd4 {[%emt 0:01:04]} Qc7 {[%emt 0:17:18]} 16. Qa4 {[%emt 0:00:18]} Bb7 {[%emt 0:00:43]} 17. Rab1 {[%emt 0:03:29]} Bc6 {[%emt 0:01:29]} 18. Qc2 {[%emt 0:00:43]} Bc5 {[%emt 0:03:02]} 19. Nb3 {[%emt 0:00:26]} Be4 {[%emt 0:03:02]} 20. Qb2 {[%emt 0:02:04]} Bxb1 {[%emt 0:02:56]} 21. Qxb1 {[%emt 0:00:06]} Bxd4 {[%emt 0:03:16]} 22. Nfxd4 {[%emt 0:00:21]} Nc5 {[%emt 0:07:20]} 23. Nb5 {[%emt 0:01:29]} Qe7 {[%emt 0:01:57]} 24. N3d4 {[%emt 0:00:44]} a6 {[%emt 0:02:27]} 25. Nc3 {[%emt 0:01:39]} Nfd7 {[%emt 0:02:33]} 26. Nc6 {[%emt 0:01:14]} Qf6 {[%emt 0:00:52]} 27. Ne4 {[%emt 0:01:35]} Nxe4 {[%emt 0:01:33]} 28. Qxe4 {[%emt 0:00:09]} Rc7 {[%emt 0:01:24]} 29. Rd1 {[%emt 0:01:27]} Rfc8 {[%emt 0:00:53]} 30. Qb1 {[%emt 0:00:32]} Ne5 {[%emt 0:05:10]} 31. Nxe5 {[%emt 0:03:20]} Qxe5 {[%emt 0:00:04]} 32. Qxb6 {[%emt 0:00:32]} Qxe2 {[%emt 0:01:18]} 33. Rd4 {[%emt 0:00:45]} Qe5 {[%emt 0:01:01]} 34. Bb7 {[%emt 0:02:06]} Rf8 {[%emt 0:02:21]} 35. Re4 {[%emt 0:03:18]} Qc5 {[%emt 0:01:33]} 36. Qxc5 $19 {[%emt 0:04:45]} Rxc5 {[%emt 0:00:05]} 37. Bxa6 {[%emt 0:00:07]} Ra5 {[%emt 0:00:26]} 38. Bb5 {[%emt 0:00:08]} Rxa2 {[%emt 0:00:30]} 39. c5 {[%emt 0:00:51]} Ra5 {[%emt 0:01:21]} 40. Rb4 {[%emt 0:00:34]} Rb8 {[%emt 0:00:27]} 41. c6 {[%emt 0:31:13]} Raxb5 {[%emt 0:30:16]} 42. Rc4 {[%emt 0:00:15]} Rc8 {[%emt 0:00:07]} 43. c7 {[%emt 0:00:06]} Rb7 {[%emt 0:00:05]} 44. Rd4 {[%emt 0:00:06]} Rbxc7 {[%emt 0:00:06]} 45. Kg2 {[%emt 0:00:05]} Kf8 {[%emt 0:00:09]} 46. h4 {[%emt 0:00:10]} Ke7 {[%emt 0:00:14]} 47. Rg4 {[%emt 0:00:10]} g6 {[%emt 0:00:16]} 48. h5 {[%emt 0:00:12]} Rc4 {[%emt 0:00:08]} 49. f4 {[%emt 0:00:15]} R8c5 {[%emt 0:00:29]} 50. hxg6 {[%emt 0:00:10]} hxg6 {[%emt 0:00:20]} 51. Rh4 {[%emt 0:00:18]} Rh5 {[%emt 0:00:07]} 52. Rg4 {[%emt 0:00:11]} Kf6 {[%emt 0:00:52]} 53. Kg1 {[%emt 0:00:19]} Kf5 {[%emt 0:00:06]} 54. Rg5+ {[%emt 0:00:05]} Rxg5 {[%emt 0:00:05]} 55. fxg5 {[%emt 0:00:05]} Kxg5 {[%emt 0:00:04]} 56. Kf2 {[%emt 0:00:05]} Rc3 {[%emt 0:00:06]} 57. Kg2 {[%emt 0:00:07]} Kg4 {[%emt 0:00:08]} 58. Kf2 {[%emt 0:00:28]} Rxg3 {[%emt 0:00:11]} 59. Ke2 {[%emt 0:00:04]} f5 {[%emt 0:00:28]} 60. Kf2 {[%emt 0:00:06]} f4 {[%emt 0:00:05]} 61. Ke2 {[%emt 0:00:10]} f3+ {[%emt 0:00:08]} 62. Ke1 {[%emt 0:00:09]} Rg2 {[%emt 0:00:11]} 63. Kf1 {[%emt 0:00:08]} Kg3 {[%emt 0:00:07]} 64. Ke1 {[%emt 0:00:11]} f2+ {[%emt 0:00:05]} 65. Kd2 {[%emt 0:00:07]} f1=Q+ {[%emt 0:00:08]} 66. Ke3 {[%emt 0:00:15]} Re2+ {[%emt 0:00:10]} 67. Kd4 {[%emt 0:00:00]} Qd1+ {[%emt 0:00:00]} 68. Kc3 {[%emt 0:00:00]} Rc2+ {[%emt 0:00:00]} 69. Kb3 {[%emt 0:00:00]} Qb1+ {[%emt 0:00:00]} 70. Ka3 {[%emt 0:00:00]} Ra2# 0-1

[Event "GER-chT Youth Countries 2018"]
[Site "Wurzburg"]
[Date "2018.10.03"]
[Round "1"]
[White "Basovskiy, Jana"]
[Black "Amato, Cristiano"]
[Result "0-1"]
[ECO "B40"]
[WhiteElo "1772"]
[BlackElo "1661"]
[Annotator "NA RC"]
[PlyCount "82"]
[EventDate "2018.10.03"]
[EventType "team-tourn"]
[EventCountry "GER"]
[SourceTitle "playchess.com"]
[Source "ChessBase"]
[SourceQuality "1"]
[TimeControl "40/5400+30:1800+30"]

1. e4 {[%emt 0:00:00]} c5 {[%emt 0:00:00]} 2. Nf3 {[%emt 0:00:00]} e6 {[%emt 0:00:09]} 3. d4 {[%emt 0:00:00]} cxd4 {[%emt 0:00:11]} 4. Nxd4 {[%emt 0:00:00]} Nf6 {[%emt 0:00:06]} 5. Nc3 {[%emt 0:00:00]} Nc6 {[%emt 0:00:06]} 6. Ndb5 {[%emt 0:00:08]} Bb4 {[%emt 0:00:40]} 7. a3 {[%emt 0:01:46]} Bxc3+ {[%emt 0:00:15]} 8. Nxc3 {[%emt 0:00:03]} d5 {[%emt 0:01:28]} 9. exd5 {[%emt 0:00:10]} exd5 {[%emt 0:01:04]} 10. Bd3 {[%emt 0:00:13]} d4 {[%emt 0:01:58]} 11. Ne2 {[%emt 0:17:11]} O-O {[%emt 0:03:21]} 12. O-O {[%emt 0:00:14]} h6 {[%emt 0:02:55]} 13. Re1 {[%emt 0:08:26]} Bg4 {[%emt 0:07:00]} 14. f3 {[%emt 0:03:13]} Bc8 {[%emt 0:09:31]} 15. Ng3 {[%emt 0:26:41]} Nd5 {[%emt 0:05:28]} 16. Qe2 {[%emt 0:12:02]} Bd7 {[%emt 0:04:06]} 17. Qe4 {[%emt 0:03:51]} Nf6 {[%emt 0:00:07]} 18. Qh4 {[%emt 0:03:01]} Qa5 {[%emt 0:12:08]} 19. Bxh6 {[%emt 0:04:45]} gxh6 {[%emt 0:03:16]} 20. Qxf6 {[%emt 0:00:35]} Qg5 {[%emt 0:01:18]} 21. Qxg5+ {[%emt 0:01:53]} hxg5 {[%emt 0:00:00]} 22. Ne4 {[%emt 0:00:02]} f6 {[%emt 0:00:47]} 23. Nc5 {[%emt 0:01:32]} Be8 {[%emt 0:03:51]} 24. Nxb7 {[%emt 0:06:02]} Rb8 {[%emt 0:01:38]} 25. Nd6 {[%emt 0:00:59]} Ne5 {[%emt 0:01:11]} 26. Be4 {[%emt 0:05:35]} Rxb2 {[%emt 0:01:30]} 27. Bd5+ {[%emt 0:00:02]} Bf7 {[%emt 0:04:39]} 28. Nxf7 {[%emt 0:00:31]} Nxf7 {[%emt 0:00:24]} 29. Rab1 {[%emt 0:01:29]} Rxc2 {[%emt 0:01:34]} 30. Red1 {[%emt 0:01:38]} Rd8 {[%emt 0:01:00]} 31. Bb3 {[%emt 0:02:03]} Rc7 {[%emt 0:03:48]} 32. Kf2 {[%emt 0:00:36]} Kg7 {[%emt 0:00:45]} 33. Bxf7 {[%emt 0:00:20]} Kxf7 {[%emt 0:00:00]} 34. Rb4 {[%emt 0:00:00]} Rc2+ {[%emt 0:01:06]} 35. Kg3 {[%emt 0:00:34]} d3 {[%emt 0:00:31]} 36. Re4 {[%emt 0:01:06]} f5 {[%emt 0:01:11]} 37. Ree1 {[%emt 0:00:21]} f4+ {[%emt 0:00:04]} 38. Kg4 {[%emt 0:00:29]} Kf6 {[%emt 0:02:11]} 39. h4 {[%emt 0:00:17]} Rxg2+ {[%emt 0:00:30]} 40. Kh3 {[%emt 0:00:10]} Rg3+ {[%emt 0:00:12]} 41. Kh2 {[%emt 0:30:20]} Rh8 {[%emt 0:30:13]} 0-1

[Event "GER-chT Youth Countries 2018"]
[Site "Wurzburg"]
[Date "2018.10.03"]
[Round "1"]
[White "Butenandt, Svenja"]
[Black "Alferova, Emily"]
[Result "1-0"]
[ECO "D31"]
[WhiteElo "1762"]
[BlackElo "1316"]
[Annotator "NA"]
[PlyCount "103"]
[EventDate "2018.10.03"]
[EventType "team-tourn"]
[EventCountry "GER"]
[SourceTitle "playchess.com"]
[Source "ChessBase"]
[SourceQuality "1"]
[TimeControl "40/5400+30:1800+30"]

1. d4 {[%emt 0:00:00]} d5 {[%emt 0:00:00]} 2. c4 {[%emt 0:00:00]} e6 {[%emt 0:00:00]} 3. Nc3 {[%emt 0:00:00]} c6 {[%emt 0:00:00]} 4. cxd5 {[%emt 0:00:22]} cxd5 {[%emt 0:01:02]} 5. Nf3 {[%emt 0:00:45]} Nc6 {[%emt 0:00:50]} 6. Bf4 {[%emt 0:00:42]} Nf6 {[%emt 0:01:08]} 7. Nb5 {[%emt 0:03:35]} Qa5+ {[%emt 0:03:02]} 8. Nc3 {[%emt 0:01:19]} Qb4 {[%emt 0:11:12]} 9. Bd2 {[%emt 0:22:11]} Qxb2 {[%emt 0:12:54]} 10. Rb1 {[%emt 0:00:57]} Qa3 {[%emt 0:00:53]} 11. Nb5 {[%emt 0:00:44]} Qe7 {[%emt 0:01:41]} 12. Bf4 {[%emt 0:01:00]} Nh5 {[%emt 0:06:54]} 13. Nc7+ {[%emt 0:04:17]} Kd8 {[%emt 0:04:38]} 14. Bg5 {[%emt 0:05:36]} f6 {[%emt 0:00:59]} 15. Nxa8 {[%emt 0:02:27]} fxg5 {[%emt 0:01:15]} 16. e3 {[%emt 0:01:51]} b6 {[%emt 0:09:00]} 17. Ne5 {[%emt 0:09:27]} Nxe5 {[%emt 0:01:37]} 18. dxe5 {[%emt 0:00:04]} g6 {[%emt 0:00:42]} 19. Qb3 {[%emt 0:04:33]} Qb7 {[%emt 0:01:41]} 20. Nxb6 {[%emt 0:00:22]} Qxb6 {[%emt 0:00:38]} 21. Qxb6+ {[%emt 0:00:17]} axb6 {[%emt 0:00:07]} 22. Rxb6 {[%emt 0:00:05]} Kc7 {[%emt 0:00:27]} 23. Rb1 {[%emt 0:00:50]} Ba3 {[%emt 0:02:57]} 24. Be2 {[%emt 0:01:00]} Rf8 {[%emt 0:01:09]} 25. O-O {[%emt 0:01:30]} Bd7 {[%emt 0:01:22]} 26. Rb3 {[%emt 0:01:08]} Ra8 {[%emt 0:04:28]} 27. Rfb1 {[%emt 0:01:16]} Ra7 {[%emt 0:02:28]} 28. Rb8 {[%emt 0:01:22]} Ng7 {[%emt 0:01:05]} 29. Rh8 {[%emt 0:00:52]} Nf5 {[%emt 0:02:18]} 30. Rxh7 {[%emt 0:00:34]} Ne7 {[%emt 0:03:09]} 31. Rb3 {[%emt 0:04:09]} Nc6 {[%emt 0:02:36]} 32. Rc3 {[%emt 0:04:01]} Bb2 {[%emt 0:01:35]} 33. Rc2 {[%emt 0:00:09]} Bxe5 {[%emt 0:02:27]} 34. Bb5 {[%emt 0:00:39]} Kd6 {[%emt 0:00:24]} 35. Bxc6 {[%emt 0:00:44]} Rc7 {[%emt 0:02:24]} 36. Rxd7+ {[%emt 0:00:16]} Rxd7 {[%emt 0:00:06]} 37. Bxd7 {[%emt 0:00:04]} Kxd7 {[%emt 0:00:14]} 38. h3 {[%emt 0:01:03]} Bd6 {[%emt 0:01:17]} 39. g3 e5 {[%emt 0:00:23]} 40. Kf1 {[%emt 0:01:19]} d4 {[%emt 0:00:11]} 41. exd4 {[%emt 0:30:28]} exd4 {[%emt 0:30:06]} 42. Ke2 {[%emt 0:00:09]} Ke6 {[%emt 0:00:21]} 43. Kd3 {[%emt 0:00:23]} Kd5 {[%emt 0:00:16]} 44. a4 {[%emt 0:00:17]} Bb4 {[%emt 0:00:13]} 45. Rc4 {[%emt 0:00:48]} Bc3 {[%emt 0:00:28]} 46. Rxc3 {[%emt 0:01:10]} dxc3 {[%emt 0:00:11]} 47. Kxc3 {[%emt 0:00:02]} Ke4 {[%emt 0:00:06]} 48. a5 {[%emt 0:00:06]} Kf3 {[%emt 0:00:15]} 49. a6 {[%emt 0:00:08]} Kxf2 {[%emt 0:00:11]} 50. a7 {[%emt 0:00:09]} Kxg3 {[%emt 0:00:16]} 51. a8=Q {[%emt 0:00:10]} Kxh3 {[%emt 0:00:08]} 52. Qf3+ {[%emt 0:00:18]} 1-0

[Event "GER-chT Youth Countries 2018"]
[Site "Wurzburg"]
[Date "2018.10.03"]
[Round "1"]
[White "Doll, Rebecca"]
[Black "Hund, Sarah"]
[Result "0-1"]
[ECO "C55"]
[WhiteElo "1722"]
[BlackElo "2023"]
[Annotator "NA"]
[PlyCount "105"]
[EventDate "2018.10.03"]
[EventType "team-tourn"]
[EventCountry "GER"]
[SourceTitle "playchess.com"]
[Source "ChessBase"]
[SourceQuality "1"]
[TimeControl "40/5400+30:1800+30"]

1. e4 {[%emt 0:00:00]} e5 {[%emt 0:00:00]} 2. Nf3 {[%emt 0:00:00]} Nc6 {[%emt 0:00:02]} 3. Bc4 {[%emt 0:00:00]} Nf6 {[%emt 0:00:13]} 4. d3 {[%emt 0:00:00]} Be7 {[%emt 0:00:30]} 5. O-O {[%emt 0:00:06]} d6 {[%emt 0:00:29]} 6. Bb3 {[%emt 0:00:35] C55: Two Knights: 4 d3, 4 d4 exd4 5 e5 and Max Lange Attack} (6. a4 Bg4 7. h3 Bh5 8. c3 Qd7 9. Re1 O-O-O 10. a5 a6 11. b4 g5 12. b5 Nb8 13. bxa6 Nxa6 14. d4 {1-0 (26) Anand,V (2779)-Naiditsch,A (2687) Doha 2016}) 6... Bg4 {[%emt 0:01:01]} 7. Nbd2 $146 {[%emt 0:09:13]} ({Predecessor:} 7. c3 Qd7 8. Nbd2 O-O 9. Re1 d5 10. Qe2 Rfe8 11. Nf1 Rad8 12. h3 Bh5 13. Ng3 Bg6 14. Ba4 Bc5 15. Bg5 dxe4 16. dxe4 Qd3 17. Qxd3 Rxd3 18. Bxf6 gxf6 19. Bxc6 bxc6 {1-0 (77) Lobzhanidze,D (2512)-Bach,M (2339) Dortmund 2001}) 7... Nd7 {[%emt 0:05:51]} 8. c3 {[%emt 0:17:13]} Nc5 {[%emt 0:05:12]} 9. Bc2 {[%emt 0:04:51]} Ne6 {[%emt 0:04:19]} 10. Qe1 {[%emt 0:11:18]} O-O {[%emt 0:09:45]} 11. h3 {[%emt 0:02:49]} Bh5 {[%emt 0:00:50]} 12. Nh2 {[%emt 0:06:11]} Bg5 {[%emt 0:04:18]} 13. Ndf3 {[%emt 0:06:24]} Bxc1 {[%emt 0:02:59]} 14. Rxc1 {[%emt 0:01:54]} Qf6 {[%emt 0:01:45]} 15. Ng4 {[%emt 0:08:18]} Qe7 {[%emt 0:05:35]} 16. Qd2 {[%emt 0:09:32]} Nf4 {[%emt 0:02:18]} 17. d4 {[%emt 0:02:31]} Rad8 {[%emt 0:01:38]} 18. Qe3 {[%emt 0:04:22]} Bxg4 {[%emt 0:05:51]} 19. hxg4 {[%emt 0:00:11]} Qe6 {[%emt 0:00:39]} 20. Nh2 {[%emt 0:03:11]} Qxa2 {[%emt 0:04:26]} 21. g3 {[%emt 0:07:32]} Ng6 {[%emt 0:01:38]} 22. d5 {[%emt 0:01:31]} Nce7 {[%emt 0:00:58] [#]} 23. b3 {[%emt 0:02:09]} (23. Ra1 $1 $16 {[%cal Ra1a2]} Qc4 24. Rxa7) 23... c6 {[%emt 0:03:18]} 24. Qd2 {[%emt 0:00:53]} Qa5 {[%emt 0:01:03]} 25. Ra1 {[%emt 0:00:23]} Qb6 {[%emt 0:01:09]} 26. Kg2 {[%emt 0:00:12]} Nc8 {[%emt 0:03:30]} 27. Nf3 {[%emt 0:00:12]} Qc7 {[%emt 0:02:21]} 28. Rh1 {[%emt 0:00:22]} Qd7 {[%emt 0:00:58]} 29. Nh2 {[%emt 0:00:42]} f6 {[%emt 0:04:47]} 30. Qe2 {[%emt 0:00:14]} Rf7 {[%emt 0:00:53]} 31. Nf1 {[%emt 0:00:10]} b5 {[%emt 0:02:42]} 32. Ne3 {[%emt 0:00:42]} Nb6 {[%emt 0:01:54]} 33. Bd3 {[%emt 0:00:42]} cxd5 {[%emt 0:02:51]} (33... Qc7 $142) 34. exd5 {[%emt 0:00:26]} Qb7 {[%emt 0:02:30]} 35. c4 {[%emt 0:01:04]} ({White should try} 35. Qf3 $16) 35... Nf8 {[%emt 0:03:24]} 36. Rh2 {[%emt 0:00:36]} ({White should try} 36. cxb5 $11 g6 37. Qf3) 36... g6 {[%emt 0:00:47]} 37. Rah1 {[%emt 0:00:40]} bxc4 {[%emt 0:02:36]} 38. bxc4 {[%emt 0:01:05]} Na4 {[%emt 0:01:32]} 39. Rb1 {[%emt 0:00:25]} Qc7 {[%emt 0:00:29]} 40. Qc2 {[%emt 0:00:06]} Nc5 {[%emt 0:00:24]} 41. Be2 {[%emt 0:30:37]} Rb8 {[%emt 0:32:17]} 42. Rhh1 {[%emt 0:00:00]} Qc8 {[%emt 0:00:00]} 43. Rxb8 {[%emt 0:00:00]} Qxb8 {[%emt 0:00:00]} 44. Ra1 {[%emt 0:00:00]} a6 {[%emt 0:00:00]} 45. Nd1 {[%emt 0:00:00]} Rb7 {[%emt 0:00:00]} 46. Ra2 {[%emt 0:00:00]} Nfd7 {[%emt 0:00:00]} 47. Bd3 {[%emt 0:00:00]} Rb3 {[%emt 0:00:00]} 48. Nb2 $2 {[%emt 0:00:00]} (48. Bxg6 $17 hxg6 49. Qxg6+ Kf8 50. Ne3 Rxe3 51. Qh6+ Ke7 52. Qxe3) 48... Kg7 {[%emt 0:00:00]} 49. Be2 $19 {[%emt 0:00:00]} Qb4 {[%emt 0:00:00]} 50. Nd3 {[%emt 0:02:35]} Nxd3 {[%emt 0:00:00]} 51. Bxd3 {[%emt 0:00:03]} Nc5 {[%emt 0:00:00]} 52. Be2 {[%emt 0:01:08]} a5 {[%emt 0:00:00]} 53. Bd1 {[%emt 0:00:57]} 0-1

[Event "GER-chT Youth Countries 2018"]
[Site "Wurzburg"]
[Date "2018.10.03"]
[Round "1"]
[White "Pohle, Saskia"]
[Black "Hentschel, Lena"]
[Result "1-0"]
[ECO "B06"]
[WhiteElo "1690"]
[BlackElo "1533"]
[Annotator "NA"]
[PlyCount "73"]
[EventDate "2018.10.03"]
[EventType "team-tourn"]
[EventCountry "GER"]
[SourceTitle "playchess.com"]
[Source "ChessBase"]
[SourceQuality "1"]
[TimeControl "40/5400+30:1800+30"]

1. e4 {[%emt 0:00:00]} g6 {[%emt 0:00:00]} 2. d4 {[%emt 0:00:00]} Bg7 {[%emt 0:00:00]} 3. c4 {[%emt 0:00:00]} d6 {[%emt 0:00:01]} 4. Nc3 {[%emt 0:00:20]} Nd7 {[%emt 0:01:33]} 5. Nf3 {[%emt 0:01:53]} Ngf6 {[%emt 0:03:36]} 6. Be2 {[%emt 0:00:33]} O-O {[%emt 0:01:28]} 7. O-O {[%emt 0:00:18]} e5 {[%emt 0:03:48]} 8. h3 {[%emt 0:04:53]} Re8 {[%emt 0:03:29]} 9. dxe5 {[%emt 0:09:33]} dxe5 {[%emt 0:02:44]} 10. Be3 {[%emt 0:00:52]} c6 {[%emt 0:02:35]} 11. Qc2 {[%emt 0:04:35]} Qc7 {[%emt 0:07:50]} 12. Rfd1 {[%emt 0:01:07]} b6 {[%emt 0:04:36]} 13. c5 {[%emt 0:11:44]} Bb7 {[%emt 0:07:26]} 14. cxb6 {[%emt 0:01:28]} axb6 {[%emt 0:02:20]} 15. Nb5 {[%emt 0:00:31]} Qb8 {[%emt 0:02:55]} 16. Nd6 {[%emt 0:00:59]} Re6 {[%emt 0:04:05]} 17. Qd2 {[%emt 0:01:46]} Bf8 {[%emt 0:04:04]} 18. Nxb7 {[%emt 0:02:42]} Qxb7 {[%emt 0:01:08]} 19. Bc4 {[%emt 0:01:39]} Rd6 {[%emt 0:08:29]} 20. Qc2 {[%emt 0:00:18]} Rxd1+ {[%emt 0:01:06]} 21. Rxd1 {[%emt 0:00:05]} Re8 {[%emt 0:06:43]} 22. Ng5 {[%emt 0:02:47]} Re7 {[%emt 0:01:54]} 23. Qb3 {[%emt 0:00:25]} Nc5 {[%emt 0:04:04]} 24. Bxc5 {[%emt 0:05:35]} bxc5 {[%emt 0:00:34]} 25. Qxb7 {[%emt 0:01:22]} Rxb7 {[%emt 0:01:02]} 26. Nxf7 {[%emt 0:02:05]} Rxf7 {[%emt 0:02:44]} 27. a4 {[%emt 0:00:05]} Nxe4 {[%emt 0:07:22]} 28. Bxf7+ {[%emt 0:02:17]} Kxf7 {[%emt 0:00:32]} 29. a5 {[%emt 0:00:14]} Nd6 {[%emt 0:01:02]} 30. a6 {[%emt 0:00:09]} Nb5 {[%emt 0:00:59]} 31. Rd7+ {[%emt 0:01:04]} Be7 {[%emt 0:00:37]} 32. Rb7 {[%emt 0:00:23]} Nd6 {[%emt 0:03:13]} 33. Rxe7+ Kxe7 {[%emt 0:00:11]} 34. a7 {[%emt 0:00:15]} Ke6 {[%emt 0:00:46]} 35. a8=Q {[%emt 0:00:10]} Kd5 {[%emt 0:00:41]} 36. Qg8+ {[%emt 0:00:28]} Kd4 {[%emt 0:00:54]} 37. Qxh7 {[%emt 0:00:10]} 1-0